Workbook

Sheet Add File 11
B2: gRNA 1 | K2: Control | T2: Percentage Change (%)
B3: CpG Site | C3: Biol. 1 | D3: Biol. 2 | E3: Biol. 3 | F3: Biol. 4 | G3: Biol. 5 | H3: Biol. 6 | I3: Biol. 7 | J3: Average | K3: CpG Site | L3: Biol. 1 | M3: Biol. 2 | N3: Biol. 3 | O3: Biol. 4 | P3: Biol. 5 | Q3: Biol. 6 | R3: Biol. 7 | S3: Average
B4: 1 | C4: 12.65 | D4: 10.94 | E4: 19.36 | F4: 11.275 | G4: 11.175 | H4: 14.615 | I4: 12.14 | J4: =AVERAGE(C4:I4) -> 13.165 | K4: 1 | L4: 13.55 | M4: 13.065 | N4: 12.685 | O4: 9.94 | P4: 11.105 | Q4: 7.465 | R4: 8.475 | S4: =AVERAGE(L4:R4) -> 10.89785714 | T4: =J4-S4 -> 2.267142857
B5: 2 | C5: 12.705 | D5: 22.785 | E5: 24.11 | F5: 15.05 | G5: 15.42 | H5: 21.6 | I5: 26.63 | J5: =AVERAGE(C5:I5) -> 19.75714286 | K5: 2 | L5: 15.425 | M5: 15.185 | N5: 12.135 | O5: 15.49 | P5: 12.275 | Q5: 17.505 | R5: 19.47 | S5: =AVERAGE(L5:R5) -> 15.355 | T5: =J5-S5 -> 4.402142857
B6: 3 | C6: 19.495 | D6: 19.785 | E6: 22.635 | F6: 22.16 | G6: 21.215 | H6: 17.775 | I6: 20.25 | J6: 20.47357143 | K6: 3 | L6: 20.075 | M6: 19.98 | N6: 19.465 | O6: 20.69 | P6: 20.07 | Q6: 15.97 | R6: 16.88 | S6: 19.01857143 | T6: 1.455
B7: 4 | C7: 25.635 | D7: 23.04 | E7: 29.125 | F7: 27.78 | G7: 27.5 | H7: 27.64 | I7: 30.29 | J7: 27.28714286 | K7: 4 | L7: 24.395 | M7: 22.955 | N7: 21.55 | O7: 23.725 | P7: 25.945 | Q7: 19.28 | R7: 22.365 | S7: 22.88785714 | T7: 4.399285714
B8: 5 | C8: 23.355 | D8: 21.28 | E8: 25.59 | F8: 24.53 | G8: 25.82 | H8: 21.585 | I8: 21.33 | J8: 23.35571429 | K8: 5 | L8: 24.195 | M8: 24.205 | N8: 23.75 | O8: 23.56 | P8: 23.195 | Q8: 18.43 | R8: 18.78 | S8: 22.30214286 | T8: 1.053571429
B9: 6 | C9: 20.87 | D9: 20.175 | E9: 21.425 | F9: 19.895 | G9: 20.505 | H9: 19.215 | I9: 19.18 | J9: 20.18071429 | K9: 6 | L9: 20.59 | M9: 21.165 | N9: 19.085 | O9: 19.725 | P9: 20.455 | Q9: 14.39 | R9: 16.205 | S9: 18.80214286 | T9: 1.378571429
B10: 7 | C10: 18.435 | D10: 19.05 | E10: 26.445 | F10: 25.18 | G10: 21.87 | H10: 23.43 | I10: 24.675 | J10: 22.72642857 | K10: 7 | L10: 17.655 | M10: 16.295 | N10: 18.76 | O10: 20.105 | P10: 17.815 | Q10: 18.15 | R10: 19.14 | S10: 18.27428571 | T10: 4.452142857
B11: 8 | C11: 22.72 | D11: 24 | E11: 31.84 | F11: 30.32 | G11: 27.32 | H11: 27.645 | I11: 30.86 | J11: 27.815 | K11: 8 | L11: 21.375 | M11: 19.94 | N11: 26.295 | O11: 27.025 | P11: 22.39 | Q11: 22.735 | R11: 23.97 | S11: 23.39 | T11: 4.425
B12: 9 | C12: 8.52 | D12: 6.645 | E12: 12.475 | F12: 12.295 | G12: 9.21 | H12: 8.26 | I12: 9.87 | J12: 9.610714286 | K12: 9 | L12: 7.475 | M12: 6.73 | N12: 10.145 | O12: 7.9 | P12: 7.58 | Q12: 6.64 | R12: 7.905 | S12: 7.767857143 | T12: 1.842857143
B13: 10 | C13: 18.84 | D13: 17.815 | E13: 24.645 | F13: 22.4 | G13: 23.855 | H13: 23.93 | I13: 26.4 | J13: 22.555 | K13: 10 | L13: 15.2 | M13: 14.685 | N13: 18.455 | O13: 21.335 | P13: 18.49 | Q13: 17.74 | R13: 20.895 | S13: 18.11428571 | T13: 4.440714286
B14: 11 | C14: 10.38 | D14: 10.99 | E14: 19.465 | F14: 16.67 | G14: 14.405 | H14: 17.815 | I14: 17.485 | J14: 15.31571429 | K14: 11 | L14: 4.975 | M14: 5.46 | N14: 7.66 | O14: 8.54 | P14: 7.425 | Q14: 5.81 | R14: 7.76 | S14: 6.804285714 | T14: 8.511428571
B15: 12 | C15: 2.61 | D15: 2.355 | E15: 4.98 | F15: 4.075 | G15: 3.38 | H15: 4.495 | I15: 5.33 | J15: 3.889285714 | K15: 12 | L15: 1.27 | M15: 1.245 | N15: 2.6 | O15: 2.195 | P15: 2.625 | Q15: 2.055 | R15: 1.79 | S15: 1.968571429 | T15: 1.920714286
B16: 13 | C16: 7.655 | D16: 7.35 | E16: 16.51 | F16: 13.705 | G16: 11.09 | H16: 14.05 | I16: 12.24 | J16: 11.8 | K16: 13 | L16: 3.13 | M16: 3.1 | N16: 5.685 | O16: 6.955 | P16: 5.795 | Q16: 6.48 | R16: 6.105 | S16: 5.321428571 | T16: 6.478571429
B17: 14 | C17: 10.145 | D17: 10.325 | E17: 15.785 | F17: 18.015 | G17: 9.97 | H17: 19.765 | I17: 16.835 | J17: 14.40571429 | K17: 14 | L17: 5.45 | M17: 5.67 | N17: 4.89 | O17: 7.505 | P17: 3.83 | Q17: 9.825 | R17: 8.34 | S17: 6.501428571 | T17: 7.904285714
B18: 15 | C18: 4.74 | D18: 5.055 | E18: 8.545 | F18: 8.58 | G18: 5.455 | H18: 9.655 | I18: 5.69 | J18: 6.817142857 | K18: 15 | L18: 1.585 | M18: 1.685 | N18: 2.455 | O18: 2.46 | P18: 2.125 | Q18: 2.67 | R18: 2.5 | S18: 2.211428571 | T18: 4.605714286
B19: 16 | C19: 4.435 | D19: 4.52 | E19: 8.815 | F19: 9.865 | G19: 5.435 | H19: 8.59 | I19: 8.955 | J19: 7.230714286 | K19: 16 | L19: 2.32 | M19: 2.68 | N19: 2.97 | O19: 3.365 | P19: 3.085 | Q19: 4.555 | R19: 3.415 | S19: 3.198571429 | T19: 4.032142857
B20: gRNA 2 | K20: Control | T20: Percentage Change (%)
B21: CpG Site | C21: Biol. 1 | D21: Biol. 2 | E21: Biol. 3 | F21: Biol. 4 | G21: Biol. 5 | H21: Biol. 6 | I21: Biol. 7 | J21: Average | K21: CpG Site | L21: Biol. 1 | M21: Biol. 2 | N21: Biol. 3 | O21: Biol. 4 | P21: Biol. 5 | Q21: Biol. 6 | R21: Biol. 7 | S21: Average
B22: 1 | C22: 24.12 | D22: 16.555 | E22: 16.455 | F22: 18.955 | G22: 13.47 | H22: 19.745 | I22: 11.89 | J22: =AVERAGE(C22:I22) -> 17.31285714 | K22: 1 | L22: 13.55 | M22: 13.065 | N22: 12.685 | O22: 9.94 | P22: 11.105 | Q22: 7.465 | R22: 8.475 | S22: =AVERAGE(L22:R22) -> 10.89785714 | T22: =J22-S22 -> 6.415
B23: 2 | C23: 18.115 | D23: 12.65 | E23: 16 | F23: 12.35 | G23: 14.615 | H23: 13.735 | I23: 14.375 | J23: =AVERAGE(C23:I23) -> 14.54857143 | K23: 2 | L23: 15.425 | M23: 15.185 | N23: 12.135 | O23: 15.49 | P23: 12.275 | Q23: 17.505 | R23: 19.47 | S23: =AVERAGE(L23:R23) -> 15.355 | T23: =J23-S23 -> -0.8064285714
B24: 3 | C24: 19.475 | D24: 19.095 | E24: 19.32 | F24: 18.33 | G24: 22.965 | H24: 14.795 | I24: 16.405 | J24: 18.62642857 | K24: 3 | L24: 20.075 | M24: 19.98 | N24: 19.465 | O24: 20.69 | P24: 20.07 | Q24: 15.97 | R24: 16.88 | S24: 19.01857143 | T24: -0.3921428571
B25: 4 | C25: 23.45 | D25: 25.595 | E25: 23.98 | F25: 23.745 | G25: 25.66 | H25: 20.56 | I25: 21.55 | J25: 23.50571429 | K25: 4 | L25: 24.395 | M25: 22.955 | N25: 21.55 | O25: 23.725 | P25: 25.945 | Q25: 19.28 | R25: 22.365 | S25: 22.88785714 | T25: 0.6178571429
B26: 5 | C26: 24.405 | D26: 25.03 | E26: 24.42 | F26: 23.735 | G26: 25.66 | H26: 20.385 | I26: 20.09 | J26: 23.38928571 | K26: 5 | L26: 24.195 | M26: 24.205 | N26: 23.75 | O26: 23.56 | P26: 23.195 | Q26: 18.43 | R26: 18.78 | S26: 22.30214286 | T26: 1.087142857
B27: 6 | C27: 31.495 | D27: 33.35 | E27: 32.735 | F27: 32.775 | G27: 35.7 | H27: 30.215 | I27: 31.22 | J27: 32.49857143 | K27: 6 | L27: 20.59 | M27: 21.165 | N27: 19.085 | O27: 19.725 | P27: 20.455 | Q27: 14.39 | R27: 16.205 | S27: 18.80214286 | T27: 13.69642857
B28: 7 | C28: 52.075 | D28: 53.45 | E28: 55.385 | F28: 55.105 | G28: 61.07 | H28: 54.62 | I28: 59.97 | J28: 55.95357143 | K28: 7 | L28: 17.655 | M28: 16.295 | N28: 18.76 | O28: 20.105 | P28: 17.815 | Q28: 18.15 | R28: 19.14 | S28: 18.27428571 | T28: 37.67928571
B29: 8 | C29: 57.415 | D29: 59.525 | E29: 61.04 | F29: 59.025 | G29: 63.82 | H29: 57.435 | I29: 64.28 | J29: 60.36285714 | K29: 8 | L29: 21.375 | M29: 19.94 | N29: 26.295 | O29: 27.025 | P29: 22.39 | Q29: 22.735 | R29: 23.97 | S29: 23.39 | T29: 36.97285714
B30: 9 | C30: 29.57 | D30: 33.535 | E30: 39.955 | F30: 43.785 | G30: 33.54 | H30: 33.735 | I30: 37.11 | J30: 35.89 | K30: 9 | L30: 7.475 | M30: 6.73 | N30: 10.145 | O30: 7.9 | P30: 7.58 | Q30: 6.64 | R30: 7.905 | S30: 7.767857143 | T30: 28.12214286
B31: 10 | C31: 41.705 | D31: 46.455 | E31: 44.335 | F31: 47.64 | G31: 47.84 | H31: 43.02 | I31: 46.705 | J31: 45.38571429 | K31: 10 | L31: 15.2 | M31: 14.685 | N31: 18.455 | O31: 21.335 | P31: 18.49 | Q31: 17.74 | R31: 20.895 | S31: 18.11428571 | T31: 27.27142857
B32: 11 | C32: 15.14 | D32: 17.525 | E32: 19.595 | F32: 19.6 | G32: 20.165 | H32: 18.475 | I32: 18.985 | J32: 18.49785714 | K32: 11 | L32: 4.975 | M32: 5.46 | N32: 7.66 | O32: 8.54 | P32: 7.425 | Q32: 5.81 | R32: 7.76 | S32: 6.804285714 | T32: 11.69357143
B33: 12 | C33: 2.605 | D33: 2.42 | E33: 4.14 | F33: 4.435 | G33: 5.5 | H33: 4.565 | I33: 5.145 | J33: 4.115714286 | K33: 12 | L33: 1.27 | M33: 1.245 | N33: 2.6 | O33: 2.195 | P33: 2.625 | Q33: 2.055 | R33: 1.79 | S33: 1.968571429 | T33: 2.147142857
B34: 13 | C34: 8.88 | D34: 10.52 | E34: 15.01 | F34: 16.21 | G34: 12.825 | H34: 10.735 | I34: 11.16 | J34: 12.19142857 | K34: 13 | L34: 3.13 | M34: 3.1 | N34: 5.685 | O34: 6.955 | P34: 5.795 | Q34: 6.48 | R34: 6.105 | S34: 5.321428571 | T34: 6.87
B35: 14 | C35: 15.475 | D35: 19.725 | E35: 22.25 | F35: 22.175 | G35: 16.91 | H35: 21.28 | I35: 20.96 | J35: 19.825 | K35: 14 | L35: 5.45 | M35: 5.67 | N35: 4.89 | O35: 7.505 | P35: 3.83 | Q35: 9.825 | R35: 8.34 | S35: 6.501428571 | T35: 13.32357143
B36: 15 | C36: 12.965 | D36: 13.89 | E36: 15.785 | F36: 15.825 | G36: 10.605 | H36: 12.755 | I36: 11.42 | J36: 13.32071429 | K36: 15 | L36: 1.585 | M36: 1.685 | N36: 2.455 | O36: 2.46 | P36: 2.125 | Q36: 2.67 | R36: 2.5 | S36: 2.211428571 | T36: 11.10928571
B37: 16 | C37: 15.05 | D37: 17.42 | E37: 19.52 | F37: 22.115 | G37: 18.125 | H37: 20.305 | I37: 20.725 | J37: 19.03714286 | K37: 16 | L37: 2.32 | M37: 2.68 | N37: 2.97 | O37: 3.365 | P37: 3.085 | Q37: 4.555 | R37: 3.415 | S37: 3.198571429 | T37: 15.83857143
B38: gRNA 3 | K38: Control | T38: Percentage Change (%)
B39: CpG Site | C39: Biol. 1 | D39: Biol. 2 | E39: Biol. 3 | F39: Biol. 4 | G39: Biol. 5 | H39: Biol. 6 | I39: Biol. 7 | J39: Average | K39: CpG Site | L39: Biol. 1 | M39: Biol. 2 | N39: Biol. 3 | O39: Biol. 4 | P39: Biol. 5 | Q39: Biol. 6 | R39: Biol. 7 | S39: Average
B40: 1 | C40: 12.13 | D40: 13.585 | E40: 16.95 | F40: 11.25 | G40: 11.735 | H40: 11.215 | I40: 13.635 | J40: =AVERAGE(C40:I40) -> 12.92857143 | K40: 1 | L40: 13.55 | M40: 13.065 | N40: 12.685 | O40: 9.94 | P40: 11.105 | Q40: 7.465 | R40: 8.475 | S40: =AVERAGE(L40:R40) -> 10.89785714 | T40: =J40-S40 -> 2.030714286
B41: 2 | C41: 18.585 | D41: 18.205 | E41: 17.745 | F41: 16.385 | G41: 16.1 | H41: 25.715 | I41: 20.495 | J41: =AVERAGE(C41:I41) -> 19.03285714 | K41: 2 | L41: 15.425 | M41: 15.185 | N41: 12.135 | O41: 15.49 | P41: 12.275 | Q41: 17.505 | R41: 19.47 | S41: =AVERAGE(L41:R41) -> 15.355 | T41: =J41-S41 -> 3.677857143
B42: 3 | C42: 24.175 | D42: 26.875 | E42: 23.325 | F42: 25.255 | G42: 25.95 | H42: 22.29 | I42: 22.725 | J42: 24.37071429 | K42: 3 | L42: 20.075 | M42: 19.98 | N42: 19.465 | O42: 20.69 | P42: 20.07 | Q42: 15.97 | R42: 16.88 | S42: 19.01857143 | T42: 5.352142857
B43: 4 | C43: 31.665 | D43: 35.17 | E43: 34.39 | F43: 33.945 | G43: 37.535 | H43: 33.805 | I43: 36.925 | J43: 34.77642857 | K43: 4 | L43: 24.395 | M43: 22.955 | N43: 21.55 | O43: 23.725 | P43: 25.945 | Q43: 19.28 | R43: 22.365 | S43: 22.88785714 | T43: 11.88857143
B44: 5 | C44: 23.35 | D44: 24.815 | E44: 24.22 | F44: 24.625 | G44: 26.485 | H44: 20.2 | I44: 23.29 | J44: 23.855 | K44: 5 | L44: 24.195 | M44: 24.205 | N44: 23.75 | O44: 23.56 | P44: 23.195 | Q44: 18.43 | R44: 18.78 | S44: 22.30214286 | T44: 1.552857143
B45: 6 | C45: 22.155 | D45: 23.535 | E45: 19.645 | F45: 19.295 | G45: 24.23 | H45: 18.155 | I45: 23.035 | J45: 21.43571429 | K45: 6 | L45: 20.59 | M45: 21.165 | N45: 19.085 | O45: 19.725 | P45: 20.455 | Q45: 14.39 | R45: 16.205 | S45: 18.80214286 | T45: 2.633571429
B46: 7 | C46: 15.235 | D46: 15.125 | E46: 15.97 | F46: 14.895 | G46: 16.205 | H46: 39.295 | I46: 16.42 | J46: 19.02071429 | K46: 7 | L46: 17.655 | M46: 16.295 | N46: 18.76 | O46: 20.105 | P46: 17.815 | Q46: 18.15 | R46: 19.14 | S46: 18.27428571 | T46: 0.7464285714
B47: 8 | C47: 17.125 | D47: 17.995 | E47: 16.47 | F47: 21.22 | G47: 19.35 | H47: 53.71 | I47: 19.06 | J47: 23.56142857 | K47: 8 | L47: 21.375 | M47: 19.94 | N47: 26.295 | O47: 27.025 | P47: 22.39 | Q47: 22.735 | R47: 23.97 | S47: 23.39 | T47: 0.1714285714
B48: 9 | C48: 5.085 | D48: 5.755 | E48: 5.205 | F48: 5.01 | G48: 5.27 | H48: 4.14 | I48: 4.81 | J48: 5.039285714 | K48: 9 | L48: 7.475 | M48: 6.73 | N48: 10.145 | O48: 7.9 | P48: 7.58 | Q48: 6.64 | R48: 7.905 | S48: 7.767857143 | T48: -2.728571429
B49: 10 | C49: 13.02 | D49: 14.27 | E49: 14.29 | F49: 14.395 | G49: 15.845 | H49: 11.65 | I49: 13.63 | J49: 13.87142857 | K49: 10 | L49: 15.2 | M49: 14.685 | N49: 18.455 | O49: 21.335 | P49: 18.49 | Q49: 17.74 | R49: 20.895 | S49: 18.11428571 | T49: -4.242857143
B50: 11 | C50: 15.505 | D50: 17.96 | E50: 20.36 | F50: 21.39 | G50: 18.25 | H50: 18.605 | I50: 21.09 | J50: 19.02285714 | K50: 11 | L50: 4.975 | M50: 5.46 | N50: 7.66 | O50: 8.54 | P50: 7.425 | Q50: 5.81 | R50: 7.76 | S50: 6.804285714 | T50: 12.21857143
B51: 12 | C51: 2.515 | D51: 2.165 | E51: 3.73 | F51: 3.895 | G51: 3.755 | H51: 2.895 | I51: 5.115 | J51: 3.438571429 | K51: 12 | L51: 1.27 | M51: 1.245 | N51: 2.6 | O51: 2.195 | P51: 2.625 | Q51: 2.055 | R51: 1.79 | S51: 1.968571429 | T51: 1.47
B52: 13 | C52: 12.58 | D52: 15.485 | E52: 20.585 | F52: 20.27 | G52: 16.05 | H52: 17.055 | I52: 19.635 | J52: 17.38 | K52: 13 | L52: 3.13 | M52: 3.1 | N52: 5.685 | O52: 6.955 | P52: 5.795 | Q52: 6.48 | R52: 6.105 | S52: 5.321428571 | T52: 12.05857143
B53: 14 | C53: 19.22 | D53: 23.95 | E53: 17.91 | F53: 17.38 | G53: 18.445 | H53: 23.53 | I53: 25.565 | J53: 20.85714286 | K53: 14 | L53: 5.45 | M53: 5.67 | N53: 4.89 | O53: 7.505 | P53: 3.83 | Q53: 9.825 | R53: 8.34 | S53: 6.501428571 | T53: 14.35571429
B54: 15 | C54: 7.69 | D54: 9.445 | E54: 8.99 | F54: 8.995 | G54: 8.03 | H54: 9.93 | I54: 8.085 | J54: 8.737857143 | K54: 15 | L54: 1.585 | M54: 1.685 | N54: 2.455 | O54: 2.46 | P54: 2.125 | Q54: 2.67 | R54: 2.5 | S54: 2.211428571 | T54: 6.526428571
B55: 16 | C55: 7.61 | D55: 9.355 | E55: 10.325 | F55: 9.485 | G55: 8.94 | H55: 10.12 | I55: 12.735 | J55: 9.795714286 | K55: 16 | L55: 2.32 | M55: 2.68 | N55: 2.97 | O55: 3.365 | P55: 3.085 | Q55: 4.555 | R55: 3.415 | S55: 3.198571429 | T55: 6.597142857
B56: gRNA 4 | K56: Control | T56: Percentage Change (%)
B57: CpG Site | C57: Biol. 1 | D57: Biol. 2 | E57: Biol. 3 | F57: Biol. 4 | G57: Biol. 5 | H57: Biol. 6 | I57: Biol. 7 | J57: Average | K57: CpG Site | L57: Biol. 1 | M57: Biol. 2 | N57: Biol. 3 | O57: Biol. 4 | P57: Biol. 5 | Q57: Biol. 6 | R57: Biol. 7 | S57: Average
B58: 1 | C58: 15.38 | D58: 15.285 | E58: 22.44 | F58: 13.215 | G58: 13.305 | H58: 10.26 | I58: 15.455 | J58: =AVERAGE(C58:I58) -> 15.04857143 | K58: 1 | L58: 13.55 | M58: 13.065 | N58: 12.685 | O58: 9.94 | P58: 11.105 | Q58: 7.465 | R58: 8.475 | S58: =AVERAGE(L58:R58) -> 10.89785714 | T58: =J58-S58 -> 4.150714286
B59: 2 | C59: 19.3 | D59: 14.67 | E59: 18.515 | F59: 19.53 | G59: 13.63 | H59: 24.89 | I59: 21.235 | J59: =AVERAGE(C59:I59) -> 18.82428571 | K59: 2 | L59: 15.425 | M59: 15.185 | N59: 12.135 | O59: 15.49 | P59: 12.275 | Q59: 17.505 | R59: 19.47 | S59: =AVERAGE(L59:R59) -> 15.355 | T59: =J59-S59 -> 3.469285714
B60: 3 | C60: 23.82 | D60: 23.16 | E60: 22.055 | F60: 22.05 | G60: 22.36 | H60: 18.69 | I60: 20.56 | J60: 21.81357143 | K60: 3 | L60: 20.075 | M60: 19.98 | N60: 19.465 | O60: 20.69 | P60: 20.07 | Q60: 15.97 | R60: 16.88 | S60: 19.01857143 | T60: 2.795
B61: 4 | C61: 31.68 | D61: 30.745 | E61: 29.345 | F61: 28.94 | G61: 30.375 | H61: 28.335 | I61: 31.365 | J61: 30.11214286 | K61: 4 | L61: 24.395 | M61: 22.955 | N61: 21.55 | O61: 23.725 | P61: 25.945 | Q61: 19.28 | R61: 22.365 | S61: 22.88785714 | T61: 7.224285714
B62: 5 | C62: 26.025 | D62: 24.7 | E62: 24.34 | F62: 24.47 | G62: 25.735 | H62: 21.365 | I62: 23.2 | J62: 24.26214286 | K62: 5 | L62: 24.195 | M62: 24.205 | N62: 23.75 | O62: 23.56 | P62: 23.195 | Q62: 18.43 | R62: 18.78 | S62: 22.30214286 | T62: 1.96
B63: 6 | C63: 24.155 | D63: 23.565 | E63: 23.035 | F63: 22.255 | G63: 23.48 | H63: 20.8 | I63: 21.495 | J63: 22.68357143 | K63: 6 | L63: 20.59 | M63: 21.165 | N63: 19.085 | O63: 19.725 | P63: 20.455 | Q63: 14.39 | R63: 16.205 | S63: 18.80214286 | T63: 3.881428571
B64: 7 | C64: 26.415 | D64: 28.615 | E64: 24.405 | F64: 30.77 | G64: 29.16 | H64: 28.715 | I64: 31.295 | J64: 28.48214286 | K64: 7 | L64: 17.655 | M64: 16.295 | N64: 18.76 | O64: 20.105 | P64: 17.815 | Q64: 18.15 | R64: 19.14 | S64: 18.27428571 | T64: 10.20785714
B65: 8 | C65: 33.725 | D65: 35.69 | E65: 25.585 | F65: 39.695 | G65: 36.17 | H65: 35.215 | I65: 38.58 | J65: 34.95142857 | K65: 8 | L65: 21.375 | M65: 19.94 | N65: 26.295 | O65: 27.025 | P65: 22.39 | Q65: 22.735 | R65: 23.97 | S65: 23.39 | T65: 11.56142857
B66: 9 | C66: 29.48 | D66: 33.29 | E66: 32.5 | F66: 34.64 | G66: 29.13 | H66: 30.9 | I66: 33.52 | J66: 31.92285714 | K66: 9 | L66: 7.475 | M66: 6.73 | N66: 10.145 | O66: 7.9 | P66: 7.58 | Q66: 6.64 | R66: 7.905 | S66: 7.767857143 | T66: 24.155
B67: 10 | C67: 47.22 | D67: 52.33 | E67: 51.43 | F67: 54.755 | G67: 48.755 | H67: 51.35 | I67: 51.8 | J67: 51.09142857 | K67: 10 | L67: 15.2 | M67: 14.685 | N67: 18.455 | O67: 21.335 | P67: 18.49 | Q67: 17.74 | R67: 20.895 | S67: 18.11428571 | T67: 32.97714286
B68: 11 | C68: 10.54 | D68: 12.07 | E68: 13.535 | F68: 14.86 | G68: 12.875 | H68: 12.14 | I68: 12.455 | J68: 12.63928571 | K68: 11 | L68: 4.975 | M68: 5.46 | N68: 7.66 | O68: 8.54 | P68: 7.425 | Q68: 5.81 | R68: 7.76 | S68: 6.804285714 | T68: 5.835
B69: 12 | C69: 2.77 | D69: 4.575 | E69: 5.95 | F69: 5.62 | G69: 4.075 | H69: 4.31 | I69: 4.095 | J69: 4.485 | K69: 12 | L69: 1.27 | M69: 1.245 | N69: 2.6 | O69: 2.195 | P69: 2.625 | Q69: 2.055 | R69: 1.79 | S69: 1.968571429 | T69: 2.516428571
B70: 13 | C70: 9.21 | D70: 10.4 | E70: 13.255 | F70: 14.67 | G70: 10.635 | H70: 11.49 | I70: 12.745 | J70: 11.77214286 | K70: 13 | L70: 3.13 | M70: 3.1 | N70: 5.685 | O70: 6.955 | P70: 5.795 | Q70: 6.48 | R70: 6.105 | S70: 5.321428571 | T70: 6.450714286
B71: 14 | C71: 15.69 | D71: 18.23 | E71: 18.345 | F71: 14.29 | G71: 14.165 | H71: 16.07 | I71: 19.66 | J71: 16.63571429 | K71: 14 | L71: 5.45 | M71: 5.67 | N71: 4.89 | O71: 7.505 | P71: 3.83 | Q71: 9.825 | R71: 8.34 | S71: 6.501428571 | T71: 10.13428571
B72: 15 | C72: 3.755 | D72: 4.515 | E72: 5.38 | F72: 4.78 | G72: 4.055 | H72: 4.11 | I72: 5.765 | J72: 4.622857143 | K72: 15 | L72: 1.585 | M72: 1.685 | N72: 2.455 | O72: 2.46 | P72: 2.125 | Q72: 2.67 | R72: 2.5 | S72: 2.211428571 | T72: 2.411428571
B73: 16 | C73: 4.565 | D73: 5.665 | E73: 7.165 | F73: 5.765 | G73: 5.235 | H73: 4.84 | I73: 5.73 | J73: 5.566428571 | K73: 16 | L73: 2.32 | M73: 2.68 | N73: 2.97 | O73: 3.365 | P73: 3.085 | Q73: 4.555 | R73: 3.415 | S73: 3.198571429 | T73: 2.367857143
B74: gRNA 5 | K74: Control | T74: Percentage Change (%)
B75: CpG Site | C75: Biol. 1 | D75: Biol. 2 | E75: Biol. 3 | F75: Biol. 4 | G75: Biol. 5 | H75: Biol. 6 | I75: Biol. 7 | J75: Average | K75: CpG Site | L75: Biol. 1 | M75: Biol. 2 | N75: Biol. 3 | O75: Biol. 4 | P75: Biol. 5 | Q75: Biol. 6 | R75: Biol. 7 | S75: Average
B76: 1 | C76: 18.635 | D76: 14.7 | E76: 16.48 | F76: 13.895 | G76: 13.9 | H76: 17.955 | I76: 11.97 | J76: =AVERAGE(C76:I76) -> 15.36214286 | K76: 1 | L76: 13.55 | M76: 13.065 | N76: 12.685 | O76: 9.94 | P76: 11.105 | Q76: 7.465 | R76: 8.475 | S76: =AVERAGE(L76:R76) -> 10.89785714 | T76: =J76-S76 -> 4.464285714
B77: 2 | C77: 24.845 | D77: 35.13 | E77: 35.735 | F77: 41.92 | G77: 25.615 | H77: 42.215 | I77: 42.775 | J77: =AVERAGE(C77:I77) -> 35.46214286 | K77: 2 | L77: 15.425 | M77: 15.185 | N77: 12.135 | O77: 15.49 | P77: 12.275 | Q77: 17.505 | R77: 19.47 | S77: =AVERAGE(L77:R77) -> 15.355 | T77: =J77-S77 -> 20.10714286
B78: 3 | C78: 36.535 | D78: 38.805 | E78: 40.155 | F78: 43.21 | G78: 37.86 | H78: 43.835 | I78: 39.6 | J78: 40 | K78: 3 | L78: 20.075 | M78: 19.98 | N78: 19.465 | O78: 20.69 | P78: 20.07 | Q78: 15.97 | R78: 16.88 | S78: 19.01857143 | T78: 20.98142857
B79: 4 | C79: 51.32 | D79: 51.65 | E79: 52.44 | F79: 56.105 | G79: 50.04 | H79: 62.47 | I79: 55.39 | J79: 54.20214286 | K79: 4 | L79: 24.395 | M79: 22.955 | N79: 21.55 | O79: 23.725 | P79: 25.945 | Q79: 19.28 | R79: 22.365 | S79: 22.88785714 | T79: 31.31428571
B80: 5 | C80: 36.26 | D80: 37.31 | E80: 38.14 | F80: 39.585 | G80: 37.135 | H80: 39.99 | I80: 34.875 | J80: 37.61357143 | K80: 5 | L80: 24.195 | M80: 24.205 | N80: 23.75 | O80: 23.56 | P80: 23.195 | Q80: 18.43 | R80: 18.78 | S80: 22.30214286 | T80: 15.31142857
B81: 6 | C81: 31.49 | D81: 31.935 | E81: 29.415 | F81: 31.39 | G81: 31.315 | H81: 33.42 | I81: 29.8 | J81: 31.25214286 | K81: 6 | L81: 20.59 | M81: 21.165 | N81: 19.085 | O81: 19.725 | P81: 20.455 | Q81: 14.39 | R81: 16.205 | S81: 18.80214286 | T81: 12.45
B82: 7 | C82: 35.895 | D82: 39.67 | E82: 40.78 | F82: 45.325 | G82: 42.155 | H82: 49.625 | I82: 44.365 | J82: 42.545 | K82: 7 | L82: 17.655 | M82: 16.295 | N82: 18.76 | O82: 20.105 | P82: 17.815 | Q82: 18.15 | R82: 19.14 | S82: 18.27428571 | T82: 24.27071429
B83: 8 | C83: 38.14 | D83: 42.41 | E83: 45.35 | F83: 48.395 | G83: 44.165 | H83: 51.285 | I83: 48.095 | J83: 45.40571429 | K83: 8 | L83: 21.375 | M83: 19.94 | N83: 26.295 | O83: 27.025 | P83: 22.39 | Q83: 22.735 | R83: 23.97 | S83: 23.39 | T83: 22.01571429
B84: 9 | C84: 9.495 | D84: 8.15 | E84: 8.76 | F84: 13.69 | G84: 7.465 | H84: 7.96 | I84: 7.985 | J84: 9.072142857 | K84: 9 | L84: 7.475 | M84: 6.73 | N84: 10.145 | O84: 7.9 | P84: 7.58 | Q84: 6.64 | R84: 7.905 | S84: 7.767857143 | T84: 1.304285714
B85: 10 | C85: 23.385 | D85: 24.205 | E85: 25.77 | F85: 25.76 | G85: 26 | H85: 26.465 | I85: 25.59 | J85: 25.31071429 | K85: 10 | L85: 15.2 | M85: 14.685 | N85: 18.455 | O85: 21.335 | P85: 18.49 | Q85: 17.74 | R85: 20.895 | S85: 18.11428571 | T85: 7.196428571
B86: 11 | C86: 15.285 | D86: 16.13 | E86: 19.26 | F86: 21.23 | G86: 15.935 | H86: 19.965 | I86: 19.6 | J86: 18.20071429 | K86: 11 | L86: 4.975 | M86: 5.46 | N86: 7.66 | O86: 8.54 | P86: 7.425 | Q86: 5.81 | R86: 7.76 | S86: 6.804285714 | T86: 11.39642857
B87: 12 | C87: 3.055 | D87: 3.905 | E87: 5.05 | F87: 5.69 | G87: 3.665 | H87: 4.54 | I87: 3.965 | J87: 4.267142857 | K87: 12 | L87: 1.27 | M87: 1.245 | N87: 2.6 | O87: 2.195 | P87: 2.625 | Q87: 2.055 | R87: 1.79 | S87: 1.968571429 | T87: 2.298571429
B88: 13 | C88: 31.855 | D88: 32.94 | E88: 40.115 | F88: 44.295 | G88: 33.76 | H88: 46.58 | I88: 43.465 | J88: 39.00142857 | K88: 13 | L88: 3.13 | M88: 3.1 | N88: 5.685 | O88: 6.955 | P88: 5.795 | Q88: 6.48 | R88: 6.105 | S88: 5.321428571 | T88: 33.68
B89: 14 | C89: 37.465 | D89: 38.23 | E89: 27.98 | F89: 33.05 | G89: 38.49 | H89: 47.43 | I89: 46.99 | J89: 38.51928571 | K89: 14 | L89: 5.45 | M89: 5.67 | N89: 4.89 | O89: 7.505 | P89: 3.83 | Q89: 9.825 | R89: 8.34 | S89: 6.501428571 | T89: 32.01785714
B90: 15 | C90: 32.715 | D90: 33.045 | E90: 27.88 | F90: 32.32 | G90: 33.02 | H90: 44.675 | I90: 41.495 | J90: 35.02142857 | K90: 15 | L90: 1.585 | M90: 1.685 | N90: 2.455 | O90: 2.46 | P90: 2.125 | Q90: 2.67 | R90: 2.5 | S90: 2.211428571 | T90: 32.81
B91: 16 | C91: 29.43 | D91: 30.595 | E91: 28.62 | F91: 32.69 | G91: 29.14 | H91: 41.7 | I91: 37.095 | J91: 32.75285714 | K91: 16 | L91: 2.32 | M91: 2.68 | N91: 2.97 | O91: 3.365 | P91: 3.085 | Q91: 4.555 | R91: 3.415 | S91: 3.198571429 | T91: 29.55428571
A94: Additional file 11. dCas9-DNMT3a epigenetic modulation. b-values and mean percentage change at each CpG site per gRNA compared to non-targeting gRNA control.
